fUST/lending_fUST_20251129
["ID","MTS","AMOUNT","RATE_DAILY","PERIOD"]
[395033303,1764354634247,-599.96208224,0.00016438,2]
[395033304,1764354634259,-309.19321271,0.00016438,2]
[395033318,1764354638132,-190.80678729,0.00016438,2]
[395033319,1764354638143,-195.70321271,0.00016438,2]
[395033320,1764354638249,-519.30678729,0.00016438,2]
[395033321,1764354638260,-500.0,0.00016438,2]
[395033322,1764354638270,-505.47062885,0.00016438,2]
[395033323,1764354638281,-500.0,0.00016438,2]
[395033324,1764354638290,-500.0,0.00016438,2]
[395033325,1764354638300,-500.0,0.00016438,2]
[395033326,1764354638310,-1194.27688036,0.00016438,2]
[395033333,1764354640267,-140.28311964,0.00016438,2]
[395033334,1764354640278,-500.0,0.00016438,2]
[395033335,1764354640288,-500.0,0.00016438,2]
[395033336,1764354640298,-1100.33,0.00016438,2]
[395033337,1764354640307,-160.53877698,0.00016438,2]
[395033338,1764354640319,-339.46122302,0.00016438,2]
[395033339,1764354640329,-500.0,0.00016438,2]
[395033340,1764354640339,-376.65863359,0.00016438,2]
[395033341,1764354640350,-500.0,0.00016438,2]
[395033342,1764354640360,-711.2,0.00016438,2]
[395033343,1764354640370,-500.0,0.00016438,2]
[395033344,1764354640380,-842.59,0.00016438,2]
[395033345,1764354640390,-500.0,0.00016438,2]
[395033346,1764354640400,-500.0,0.00016438,2]
[395033347,1764354640410,-500.0,0.00016438,2]
[395033348,1764354640420,-689.92,0.00016438,2]
[395033349,1764354640429,-1447.98,0.00016438,2]
[395033350,1764354640439,-500.0,0.00016438,2]
[395033351,1764354640448,-549.26,0.00016438,2]
[395033352,1764354640458,-809.83,0.00016438,2]
[395033353,1764354640468,-500.0,0.00016438,2]
[395033354,1764354640477,-500.0,0.00016438,2]
[395033355,1764354640487,-583.31,0.00016438,2]
[395033356,1764354640496,-500.0,0.00016438,2]
[395033357,1764354640505,-789.63,0.00016438,2]
[395033358,1764354640515,-827.52,0.00016438,2]
[395033359,1764354640524,-544.7,0.00016438,2]
[395033360,1764354640534,-935.61,0.00016438,2]
[395033361,1764354640543,-500.0,0.00016438,2]
[395033362,1764354640552,-500.0,0.00016438,2]
[395033363,1764354640562,-500.0,0.00016438,2]
[395033364,1764354640572,-500.0,0.00016438,2]
[395033365,1764354640581,-882.22,0.00016438,2]
[395033366,1764354640591,-764.45,0.00016438,2]
[395033367,1764354640601,-1087.57,0.00016438,2]
[395033368,1764354640611,-500.0,0.00016438,2]
[395033369,1764354640620,-500.0,0.00016438,2]
[395033370,1764354640630,-500.0,0.00016438,2]
[395033371,1764354640640,-500.0,0.00016438,2]
[395033372,1764354640651,-821.27,0.00016438,2]
[395033373,1764354640659,-500.0,0.00016438,2]
[395033374,1764354640670,-500.0,0.00016438,2]
[395033375,1764354640679,-500.0,0.00016438,2]
[395033376,1764354640689,-500.0,0.00016438,2]
[395033377,1764354640698,-500.0,0.00016438,2]
[395033378,1764354640770,-500.0,0.00016438,2]
[395033379,1764354640779,-713.0,0.00016438,2]
[395033380,1764354640789,-666.89,0.00016438,2]
[395033381,1764354640798,-1343.92,0.00016438,2]
[395033382,1764354640807,-893.7,0.00016438,2]
[395033383,1764354640817,-500.0,0.00016438,2]
[395033384,1764354640826,-725.41,0.00016438,2]
[395033385,1764354640835,-500.0,0.00016438,2]
[395033386,1764354640845,-500.0,0.00016438,2]
[395033387,1764354640854,-943.53,0.00016438,2]
[395033388,1764354640864,-500.0,0.00016438,2]
[395033389,1764354640873,-500.0,0.00016438,2]
[395033390,1764354640882,-304.38394893,0.00016438,2]
[395033391,1764354640892,-500.0,0.00016438,2]
[395033392,1764354640901,-500.0,0.00016438,2]
[395033393,1764354640911,-1422.6,0.00016438,2]
[395033394,1764354640921,-500.0,0.00016438,2]
[395033395,1764354640930,-681.78,0.00016438,2]
[395033396,1764354640939,-500.0,0.00016438,2]
[395033397,1764354640948,-500.0,0.00016438,2]
[395033398,1764354640958,-500.0,0.00016438,2]
[395033399,1764354640968,-500.0,0.00016438,2]
[395033400,1764354640978,-500.0,0.00016438,2]
[395033401,1764354640987,-500.0,0.00016438,2]
[395033402,1764354640997,-500.0,0.00016438,2]
[395033403,1764354641006,-500.0,0.00016438,2]
[395033404,1764354641015,-612.92,0.00016438,2]
[395033405,1764354641025,-620.08,0.00016438,2]
[395033406,1764354641034,-500.0,0.00016438,2]
[395033407,1764354641045,-500.0,0.00016438,2]
[395033408,1764354641054,-615.84,0.00016438,2]
[395033409,1764354641063,-500.0,0.00016438,2]
[395033410,1764354641073,-500.0,0.00016438,2]
[395033411,1764354641082,-3688.05,0.00016438,2]
[395033412,1764354641091,-516.67,0.00016438,2]
[395033413,1764354641102,-500.0,0.00016438,2]
[395033414,1764354641115,-500.0,0.00016438,2]
[395033415,1764354641125,-1525.65,0.00016438,2]
[395033416,1764354641135,-335.80278582,0.00016438,2]
[395033417,1764354641144,-500.0,0.00016438,2]
[395033418,1764354641155,-842.04,0.00016438,2]
[395033419,1764354641164,-500.0,0.00016438,2]
[395033420,1764354641174,-500.0,0.00016438,2]
[395033421,1764354641184,-500.0,0.00016438,2]
[395033422,1764354641196,-500.0,0.00016438,2]
[395033423,1764354641206,-500.0,0.00016438,2]
[395033424,1764354641216,-500.0,0.00016438,2]
[395033425,1764354641225,-2676.86,0.00016438,2]
[395033426,1764354641235,-500.0,0.00016438,2]
[395033427,1764354641245,-500.0,0.00016438,2]
[395033428,1764354641255,-500.0,0.00016438,2]
[395033429,1764354641264,-500.0,0.00016438,2]
[395033430,1764354641274,-500.0,0.00016438,2]
[395033431,1764354641283,-500.0,0.00016438,2]
[395033432,1764354641292,-604.17,0.00016438,2]
[395033433,1764354641302,-958.48,0.00016438,2]
[395033434,1764354641311,-500.0,0.00016438,2]
[395033435,1764354641320,-525.5,0.00016438,2]
[395033436,1764354641329,-1073.57,0.00016438,2]
[395033437,1764354641338,-1664.16,0.00016438,2]
[395033438,1764354641347,-500.0,0.00016438,2]
[395033439,1764354641357,-500.0,0.00016438,2]
[395033440,1764354641366,-2069.65,0.00016438,2]
[395033441,1764354641376,-500.0,0.00016438,2]
[395033442,1764354641385,-500.0,0.00016438,2]
[395033443,1764354641394,-500.0,0.00016438,2]
[395033444,1764354641403,-538.51,0.00016438,2]
[395033445,1764354641412,-500.0,0.00016438,2]
[395033446,1764354641422,-500.0,0.00016438,2]
[395033447,1764354641431,-500.0,0.00016438,2]
[395033448,1764354641440,-500.0,0.00016438,2]
[395033449,1764354641449,-1505.35,0.00016438,2]
[395033450,1764354641458,-462.75482937,0.00016438,2]
[395033451,1764354641468,-702.15,0.00016438,2]
[395033452,1764354641478,-500.0,0.00016438,2]
[395033453,1764354641488,-500.0,0.00016438,2]
[395033454,1764354641497,-959.0,0.00016438,2]
[395033455,1764354641507,-898.0,0.00016438,2]
[395033456,1764354641517,-605.58,0.00016438,2]
[395033457,1764354641526,-765.55,0.00016438,2]
[395033458,1764354641535,-500.0,0.00016438,2]
[395033459,1764354641545,-500.0,0.00016438,2]
[395033460,1764354641554,-579.77,0.00016438,2]
[395033461,1764354641564,-500.0,0.00016438,2]
[395033462,1764354641573,-500.0,0.00016438,2]
[395033463,1764354641582,-223.40352124,0.00016438,2]
[395033464,1764354641591,-2286.84,0.00016438,2]
[395033465,1764354641601,-500.0,0.00016438,2]
[395033466,1764354641610,-500.0,0.00016438,2]
[395033467,1764354641619,-500.0,0.00016438,2]
[395033468,1764354641628,-500.0,0.00016438,2]
[395033469,1764354641637,-630.19,0.00016438,2]
[395033470,1764354641647,-500.0,0.00016438,2]
[395033471,1764354641656,-734.88,0.00016438,2]
[395033472,1764354641666,-500.0,0.00016438,2]
[395033473,1764354641678,-500.0,0.00016438,2]
[395033474,1764354641687,-690.38,0.00016438,2]
[395033475,1764354641697,-500.0,0.00016438,2]
[395033476,1764354641708,-562.6010838,0.00016438,2]
[395033477,1764354641718,-500.0,0.00016438,2]
[395033478,1764354641729,-665.26,0.00016438,2]
[395033479,1764354641739,-500.0,0.00016438,2]
[395033480,1764354641748,-1776.88,0.00016438,2]
[395033481,1764354641758,-1086.77,0.00016438,2]
[395033482,1764354641767,-639.16156741,0.00016438,2]
[395033483,1764354641777,-500.0,0.00016438,2]
[395033484,1764354641786,-500.0,0.00016438,2]
[395033485,1764354641796,-825.09,0.00016438,2]
[395033486,1764354641805,-500.0,0.00016438,2]
[395033487,1764354641815,-500.0,0.00016438,2]
[395033488,1764354641823,-500.0,0.00016438,2]
[395033489,1764354641832,-724.95,0.00016438,2]
[395033490,1764354641841,-500.0,0.00016438,2]
[395033491,1764354641852,-500.0,0.00016438,2]
[395033492,1764354641861,-615.03,0.00016438,2]
[395033493,1764354641871,-616.94173137,0.00016438,2]
[395033494,1764354641880,-609.4,0.00016438,2]
[395033495,1764354641889,-500.0,0.00016438,2]
[395033496,1764354641898,-792.42,0.00016438,2]
[395033497,1764354641907,-500.0,0.00016438,2]
[395033498,1764354641916,-500.0,0.00016438,2]
[395033499,1764354641925,-500.0,0.00016438,2]
[395033500,1764354641935,-500.0,0.00016438,2]
[395033501,1764354641944,-500.0,0.00016438,2]
[395033502,1764354641953,-1627.12,0.00016438,2]
[395033503,1764354641962,-500.0,0.00016438,2]
[395033504,1764354641971,-500.0,0.00016438,2]
[395033505,1764354641981,-570.08,0.00016438,2]
[395033506,1764354641990,-500.0,0.00016438,2]
[395033507,1764354641998,-500.0,0.00016438,2]
[395033508,1764354642008,-864.44,0.00016438,2]
[395033509,1764354642017,-421.15201289,0.00016438,2]
[395033510,1764354642026,-500.0,0.00016438,2]
[395033511,1764354642035,-638.03153211,0.00016438,2]
[395033512,1764354642044,-500.0,0.00016438,2]
[395033513,1764354642052,-1060.27,0.00016438,2]
[395033514,1764354642062,-500.0,0.00016438,2]
[395033515,1764354642071,-1208.4,0.00016438,2]
[395033516,1764354642080,-500.0,0.00016438,2]
[395033517,1764354642089,-500.0,0.00016438,2]
[395033518,1764354642100,-681.25,0.00016438,2]
[395033519,1764354642114,-500.0,0.00016438,2]
[395033520,1764354642123,-151.0,0.00016438,2]
[395033521,1764354642133,-500.0,0.00016438,2]
[395033522,1764354642142,-1026.72,0.00016438,2]
[395033523,1764354642153,-500.0,0.00016438,2]
[395033524,1764354642162,-500.0,0.00016438,2]
[395033525,1764354642171,-503.04021886,0.00016438,2]
[395033526,1764354642180,-2860.71,0.00016438,2]
[395033527,1764354642190,-500.0,0.00016438,2]
[395033528,1764354642200,-1302.95,0.00016438,2]
[395033529,1764354642210,-500.0,0.00016438,2]
[395033530,1764354642219,-500.0,0.00016438,2]
[395033531,1764354642229,-500.0,0.00016438,2]
[395033532,1764354642238,-529.15,0.00016438,2]
[395033533,1764354642247,-819.62,0.00016438,2]
[395033534,1764354642256,-1122.35,0.00016438,2]
[395033535,1764354642265,-1208.95,0.00016438,2]
[395033536,1764354642275,-850.72,0.00016438,2]
[395033537,1764354642285,-448.47564297,0.00016438,2]
[395033538,1764354642294,-500.0,0.00016438,2]
[395033539,1764354642304,-500.0,0.00016438,2]
[395033540,1764354642314,-3546.16,0.00016438,2]
[395033541,1764354642324,-500.0,0.00016438,2]
[395033542,1764354642334,-1762.25,0.00016438,2]
[395033543,1764354642343,-500.0,0.00016438,2]
[395033544,1764354642353,-1936.11,0.00016438,2]
[395033545,1764354642363,-500.0,0.00016438,2]
[395033546,1764354642372,-297.45666578,0.00016438,2]
[395033547,1764354642381,-895.94,0.00016438,2]
[395033548,1764354642391,-500.0,0.00016438,2]
[395033549,1764354642400,-500.0,0.00016438,2]
[395033550,1764354642410,-3288.94,0.00016438,2]
[395033551,1764354642419,-500.0,0.00016438,2]
[395033552,1764354642428,-500.0,0.00016438,2]
[395033553,1764354642438,-500.0,0.00016438,2]
[395033554,1764354642447,-891.61,0.00016438,2]
[395033555,1764354642456,-588.48,0.00016438,2]
[395033556,1764354642466,-352.03453722,0.00016438,2]
[395033557,1764354642475,-581.46239673,0.00016438,2]
[395033558,1764354642484,-500.0,0.00016438,2]
[395033559,1764354642494,-500.0,0.00016438,2]
[395033560,1764354642503,-3355.61,0.00016438,2]
[395033561,1764354642512,-1610.2,0.00016438,2]
[395033562,1764354642521,-500.0,0.00016438,2]
[395033563,1764354642531,-500.0,0.00016438,2]
[395033564,1764354642540,-500.0,0.00016438,2]
[395033565,1764354642549,-1490.7,0.00016438,2]
[395033566,1764354642558,-848.72,0.00016438,2]
[395033567,1764354642567,-1981.0,0.00016438,2]
[395033568,1764354642576,-1174.73,0.00016438,2]
[395033569,1764354642585,-174.9648637,0.00016438,2]
[395033570,1764354642594,-500.0,0.00016438,2]
[395033571,1764354642603,-812.35,0.00016438,2]
[395033572,1764354642612,-1136.98,0.00016438,2]
[395033573,1764354642621,-500.0,0.00016438,2]
[395033575,1764354642630,-500.0,0.00016438,2]
[395033576,1764354642639,-500.0,0.00016438,2]
[395033578,1764354642648,-500.0,0.00016438,2]
[395033579,1764354642657,-885.34,0.00016438,2]
[395033580,1764354642666,-1731.97,0.00016438,2]
[395033581,1764354642676,-4155.03,0.00016438,2]
[395033582,1764354642686,-191.34808064,0.00016438,2]
[395033583,1764354642695,-617.07413986,0.00016438,2]
[395033584,1764354642705,-1311.27,0.00016438,2]
[395033585,1764354642714,-500.0,0.00016438,2]
[395033586,1764354642723,-1498.08,0.00016438,2]
[395033587,1764354642732,-500.0,0.00016438,2]
[395033588,1764354642741,-500.0,0.00016438,2]
[395033589,1764354642751,-500.0,0.00016438,2]
[395033590,1764354642760,-2737.24,0.00016438,2]
[395033591,1764354642770,-500.0,0.00016438,2]
[395033592,1764354642779,-500.0,0.00016438,2]
[395033593,1764354642788,-925.12,0.00016438,2]
[395033595,1764354642797,-500.0,0.00016438,2]
[395033596,1764354642806,-1367.81,0.00016438,2]
[395033597,1764354642815,-716.8,0.00016438,2]
[395033598,1764354642824,-686.09,0.00016438,2]
[395033599,1764354642834,-583.79,0.00016438,2]
[395033600,1764354642843,-500.0,0.00016438,2]
[395033601,1764354642854,-500.0,0.00016438,2]
[395033602,1764354642863,-886.67,0.00016438,2]
[395033603,1764354642872,-636.66,0.00016438,2]
[395033604,1764354642882,-1134.1,0.00016438,2]
[395033605,1764354642891,-5256.33,0.00016438,2]
[395033606,1764354642900,-589.56,0.00016438,2]
[395033607,1764354642910,-500.0,0.00016438,2]
[395033609,1764354642919,-500.0,0.00016438,2]
[395033610,1764354642928,-1953.06,0.00016438,2]
[395033612,1764354642938,-4928.8,0.00016438,2]
[395033613,1764354642949,-4512.92,0.00016438,2]
[395033614,1764354642957,-662.3,0.00016438,2]
[395033615,1764354642967,-612.08,0.00016438,2]
[395033616,1764354642976,-500.0,0.00016438,2]
[395033617,1764354642985,-619.21,0.00016438,2]
[395033618,1764354642995,-500.0,0.00016438,2]
[395033619,1764354643004,-580.16,0.00016438,2]
[395033620,1764354643013,-816.57,0.00016438,2]
[395033621,1764354643022,-828.24,0.00016438,2]
[395033622,1764354643031,-500.0,0.00016438,2]
[395033623,1764354643042,-18083.1,0.00016438,2]
[395033624,1764354643050,-439.58937232,0.00016438,2]
[395033625,1764354643060,-731.76,0.00016438,2]
[395033627,1764354643069,-609.86,0.00016438,2]
[395033629,1764354643078,-1088.22,0.00016438,2]
[395033630,1764354643088,-500.0,0.00016438,2]
[395033631,1764354643098,-500.0,0.00016438,2]
[395033632,1764354643109,-1231.39,0.00016438,2]
[395033633,1764354643122,-1756.41,0.00016438,2]
[395033634,1764354643131,-500.0,0.00016438,2]
[395033635,1764354643140,-500.0,0.00016438,2]
[395033636,1764354643151,-500.0,0.00016438,2]
[395033637,1764354643160,-1203.68,0.00016438,2]
[395033638,1764354643170,-991.56,0.00016438,2]
[395033639,1764354643179,-792.41,0.00016438,2]
[395033640,1764354643189,-500.0,0.00016438,2]
[395033641,1764354643198,-500.0,0.00016438,2]
[395033642,1764354643207,-3027.29,0.00016438,2]
[395033643,1764354643216,-9143.25,0.00016438,2]
[395033644,1764354643225,-500.0,0.00016438,2]
[395033645,1764354643234,-756.59,0.00016438,2]
[395033646,1764354643243,-500.0,0.00016438,2]
[395033648,1764354643252,-500.0,0.00016438,2]
[395033649,1764354643261,-665.4,0.00016438,2]
[395033650,1764354643271,-500.0,0.00016438,2]
[395033651,1764354643280,-3333.08,0.00016438,2]
[395033652,1764354643289,-500.0,0.00016438,2]
[395033653,1764354643298,-1501.73,0.00016438,2]
[395033654,1764354643307,-1063.31,0.00016438,2]
[395033656,1764354643316,-500.0,0.00016438,2]
[395033658,1764354643325,-800.66,0.00016438,2]
[395033660,1764354643335,-500.0,0.00016438,2]
[395033662,1764354643343,-500.0,0.00016438,2]
[395033664,1764354643353,-500.0,0.00016438,2]
[395033666,1764354643362,-500.0,0.00016438,2]
[395033668,1764354643372,-500.0,0.00016438,2]
[395033670,1764354643381,-2175.03,0.00016438,2]
[395033672,1764354643390,-5064.83,0.00016438,2]
[395033674,1764354643399,-4407.99,0.00016438,2]
[395033676,1764354643408,-1017.08,0.00016438,2]
[395033678,1764354643417,-1150.87,0.00016438,2]
[395033680,1764354643426,-1690.66,0.00016438,2]
[395033682,1764354643435,-1692.18,0.00016438,2]
[395033684,1764354643444,-665.96,0.00016438,2]
[395033686,1764354643454,-1222.4,0.00016438,2]
[395033688,1764354643463,-1419.73,0.00016438,2]
[395033690,1764354643472,-2721.83,0.00016438,2]
[395033692,1764354643481,-999.13,0.00016438,2]
[395033694,1764354643491,-500.0,0.00016438,2]
[395033696,1764354643499,-500.0,0.00016438,2]
[395033698,1764354643509,-500.0,0.00016438,2]
[395033700,1764354643518,-906.81,0.00016438,2]
[395033702,1764354643527,-500.0,0.00016438,2]
[395033704,1764354643536,-1130.97,0.00016438,2]
[395033706,1764354643545,-2316.38,0.00016438,2]
[395033707,1764354643554,-500.0,0.00016438,2]
[395033709,1764354643563,-2260.69,0.00016438,2]
[395033711,1764354643572,-500.0,0.00016438,2]
[395033713,1764354643581,-500.0,0.00016438,2]
[395033715,1764354643590,-673.59,0.00016438,2]
[395033717,1764354643599,-1219.88,0.00016438,2]
[395033719,1764354643609,-3447.77,0.00016438,2]
[395033721,1764354643618,-1500.62,0.00016438,2]
[395033723,1764354643627,-515.63,0.00016438,2]
[395033725,1764354643636,-770.19,0.00016438,2]
[395033727,1764354643646,-1807.37,0.00016438,2]
[395033729,1764354643655,-500.0,0.00016438,2]
[395033731,1764354643664,-1264.89,0.00016438,2]
[395033733,1764354643674,-617.7,0.00016438,2]
[395033735,1764354643683,-500.0,0.00016438,2]
[395033737,1764354643692,-671.26,0.00016438,2]
[395033739,1764354643700,-4566.24,0.00016438,2]
[395033741,1764354643709,-500.0,0.00016438,2]
[395033743,1764354643719,-500.0,0.00016438,2]
[395033745,1764354643729,-500.0,0.00016438,2]
[395033747,1764354643738,-500.0,0.00016438,2]
[395033769,1764354643956,-3778.81,0.00016438,2]
[395033771,1764354643966,-500.0,0.00016438,2]
[395033773,1764354643975,-694.07,0.00016438,2]
[395033775,1764354643985,-500.0,0.00016438,2]
[395033777,1764354643994,-11825.99,0.00016438,2]
[395033779,1764354644003,-500.0,0.00016438,2]
[395033781,1764354644012,-1036.8,0.00016438,2]
[395033783,1764354644022,-990.25,0.00016438,2]
[395033785,1764354644030,-500.0,0.00016438,2]
[395033787,1764354644040,-1300.64,0.00016438,2]
[395033789,1764354644049,-500.0,0.00016438,2]
[395033791,1764354644058,-500.0,0.00016438,2]
[395033793,1764354644067,-3798.04,0.00016438,2]
[395033795,1764354644076,-3616.9,0.00016438,2]
[395033797,1764354644085,-500.0,0.00016438,2]
[395033799,1764354644095,-500.0,0.00016438,2]
[395033801,1764354644105,-500.0,0.00016438,2]
[395033803,1764354644119,-500.0,0.00016438,2]
[395033805,1764354644128,-529.58,0.00016438,2]
[395033807,1764354644137,-780.9,0.00016438,2]
[395033809,1764354644147,-10173.58,0.00016438,2]
[395033811,1764354644156,-548.93,0.00016438,2]
[395033812,1764354644165,-500.0,0.00016438,2]
[395033814,1764354644174,-500.0,0.00016438,2]
[395033816,1764354644184,-500.0,0.00016438,2]
[395033818,1764354644195,-500.0,0.00016438,2]
[395033820,1764354644204,-500.0,0.00016438,2]
[395033822,1764354644213,-3025.75,0.00016438,2]
[395033824,1764354644222,-500.0,0.00016438,2]
[395033826,1764354644232,-1075.31,0.00016438,2]
[395033828,1764354644241,-1002.21,0.00016438,2]
[395033830,1764354644250,-881.99,0.00016438,2]
[395033832,1764354644259,-1259.87,0.00016438,2]
[395033834,1764354644268,-500.0,0.00016438,2]
[395033836,1764354644277,-286.91283996,0.00016438,2]
[395033838,1764354644286,-582.83,0.00016438,2]
[395033840,1764354644295,-1550.28,0.00016438,2]
[395033842,1764354644304,-500.0,0.00016438,2]
[395033844,1764354644313,-697.56,0.00016438,2]
[395033845,1764354644322,-769.99,0.00016438,2]
[395033847,1764354644331,-1446.48,0.00016438,2]
[395033849,1764354644341,-500.0,0.00016438,2]
[395033851,1764354644351,-1906.17,0.00016438,2]
[395033853,1764354644360,-500.0,0.00016438,2]
[395033855,1764354644370,-500.0,0.00016438,2]
[395033857,1764354644379,-500.0,0.00016438,2]
[395033859,1764354644388,-1386.62,0.00016438,2]
[395033861,1764354644398,-500.0,0.00016438,2]
[395033863,1764354644408,-320.81526096,0.00016438,2]
[395033865,1764354644418,-500.0,0.00016438,2]
[395033867,1764354644427,-500.0,0.00016438,2]
[395033868,1764354644437,-500.0,0.00016438,2]
[395033870,1764354644446,-2738.63,0.00016438,2]
[395033872,1764354644456,-500.0,0.00016438,2]
[395033874,1764354644465,-2528.32,0.00016438,2]
[395033876,1764354644474,-500.0,0.00016438,2]
[395033878,1764354644484,-500.0,0.00016438,2]
[395033880,1764354644494,-3058.46,0.00016438,2]
[395033882,1764354644503,-2310.71,0.00016438,2]
[395033884,1764354644512,-822.91,0.00016438,2]
[395033886,1764354644521,-500.0,0.00016438,2]
[395033887,1764354644530,-1610.52,0.00016438,2]
[395033889,1764354644540,-567.83,0.00016438,2]
[395033891,1764354644549,-500.0,0.00016473,2]
[395033893,1764354644558,-500.0,0.00016473,2]
[395033895,1764354644567,-500.0,0.00016473,2]
[395033897,1764354644577,-500.0,0.00016473,2]
[395033899,1764354644586,-500.0,0.00016473,2]
[395033901,1764354644595,-500.0,0.00016473,2]
[395033903,1764354644604,-500.0,0.00016473,2]
[395033905,1764354644613,-500.0,0.00016473,2]
[395033907,1764354644623,-500.0,0.00016473,2]
[395033909,1764354644632,-500.0,0.00016473,2]
[395033911,1764354644641,-500.0,0.00016473,2]
[395033913,1764354644650,-500.0,0.00016473,2]
[395033915,1764354644659,-500.0,0.00016473,2]
[395033917,1764354644668,-150.0,0.00016517,2]
[395033919,1764354644677,-217.15233878,0.00016584,2]
[395033920,1764354644686,-587.28208372,0.00016597,2]
[395033922,1764354644695,-5230.00226328,0.00016612,2]
[395033924,1764354644704,-500.0,0.00016712,2]
[395033926,1764354644713,-903.86,0.00016712,2]
[395033928,1764354644724,-500.0,0.00016712,2]
[395033930,1764354644734,-164.17404671,0.00016712,2]
[395033932,1764354644744,-500.0,0.00016712,2]
[395033934,1764354644753,-753.24,0.00016712,2]
[395033936,1764354644762,-500.0,0.00016712,2]
[395033938,1764354644772,-500.0,0.00016712,2]
[395033940,1764354644782,-844.0,0.00016712,2]
[395033942,1764354644791,-500.0,0.00016712,2]
[395033944,1764354644799,-500.0,0.00016712,2]
[395033946,1764354644810,-500.0,0.00016712,2]
[395033948,1764354644819,-500.0,0.00016712,2]
[395033950,1764354644829,-500.0,0.00016712,2]
[395033951,1764354644838,-500.0,0.00016712,2]
[395033953,1764354644849,-500.0,0.00016712,2]
[395033955,1764354644859,-500.0,0.00016712,2]
[395033957,1764354644868,-500.0,0.00016712,2]
[395033959,1764354644877,-230.34353924,0.00016712,2]
[395033961,1764354644886,-658.19,0.00016712,2]
[395033963,1764354644895,-500.0,0.00016712,2]
[395033965,1764354644904,-500.0,0.00016712,2]
[395033966,1764354644913,-500.0,0.00016712,2]
[395033968,1764354644923,-500.0,0.00016712,2]
[395033970,1764354644932,-500.0,0.00016712,2]
[395033972,1764354644942,-500.0,0.00016712,2]
[395033974,1764354644951,-500.0,0.00016712,2]
[395033976,1764354644960,-500.0,0.00016712,2]
[395033978,1764354644969,-500.0,0.00016712,2]
[395033980,1764354644979,-504.56,0.00016712,2]
[395033981,1764354644987,-500.0,0.00016712,2]
[395033989,1764354645140,-500.0,0.00016712,2]
[395033990,1764354645161,-647.95,0.00016712,2]
[395033991,1764354645171,-500.0,0.00016712,2]
[395033993,1764354645181,-500.0,0.00016712,2]
[395033994,1764354645191,-500.0,0.00016712,2]
[395033995,1764354645200,-500.0,0.00016712,2]
[395033997,1764354645209,-500.0,0.00016712,2]
[395033998,1764354645219,-827.72,0.00016712,2]
[395033999,1764354645229,-191.90349285,0.00016712,2]
[395034000,1764354645238,-2331.44,0.00016712,2]
[395034001,1764354645247,-707.28,0.00016712,2]
[395034002,1764354645256,-500.0,0.00016712,2]
[395034003,1764354645266,-500.0,0.00016712,2]
[395034004,1764354645275,-500.0,0.00016712,2]
[395034005,1764354645284,-500.0,0.00016712,2]
[395034006,1764354645293,-500.0,0.00016712,2]
[395034007,1764354645303,-500.0,0.00016712,2]